fUSD/lending_fUSD_20250930
["ID","MTS","AMOUNT","RATE_DAILY","PERIOD"]
[388625520,1759270244087,-5090.0,0.00018193,2]
[388625521,1759270244096,-3770.15250324,0.00018215,2]
[388625522,1759270244105,-150.0,0.00018233,2]
[388625523,1759270244114,-150.0,0.00018233,2]
[388625524,1759270244124,-150.0,0.00018233,2]
[388625525,1759270244134,-1680.0,0.00018248,2]
[388625526,1759270244143,-150.0,0.00018256,2]
[388625527,1759270244152,-2019.0,0.00018263,2]
[388625528,1759270244162,-896.27,0.00018263,2]
[388625529,1759270244171,-1098.01,0.00018264,2]
[388625530,1759270244181,-167.75,0.00018264,2]
[388625531,1759270244190,-1000.0,0.00018268,2]
[388625532,1759270244199,-195.0,0.0001828,2]
[388625533,1759270244215,-150.0,0.0001828,2]
[388625534,1759270244224,-300.0,0.00018281,2]
[388625535,1759270244233,-300.0,0.00018281,2]
[388625536,1759270244243,-150.0,0.00018281,2]
[388625537,1759270244254,-300.0,0.00018281,2]
[388625538,1759270244264,-195.0,0.00018281,2]
[388625539,1759270244273,-250.0,0.00018281,2]
[388625540,1759270244285,-195.0,0.00018281,2]
[388625541,1759270244297,-250.0,0.00018281,2]
[388625542,1759270244308,-2000.0,0.00018281,2]
[388625543,1759270244317,-150.0,0.00018289,2]
[388625544,1759270244326,-150.0,0.00018289,2]
[388625545,1759270244336,-156.09,0.00018294,2]
[388625546,1759270244345,-150.0,0.00018306,2]
[388625547,1759270244354,-168.0,0.00018317,2]
[388625548,1759270244364,-594.46179286,0.00018317,2]
[388625549,1759270244373,-150.0,0.0001832,2]
[388625550,1759270244382,-150.0,0.00018329,2]
[388625551,1759270244392,-168.0,0.00018329,2]
[388625552,1759270244401,-168.0,0.0001833,2]
[388625553,1759270244412,-334.5472959,0.00018341,2]
[388625554,1759270244422,-247.14468822,0.00018341,2]
[388625555,1759270244431,-168.0,0.00018363,2]
[388625556,1759270244441,-245.75114,0.00018367,2]
[388625557,1759270244450,-51148.54074923,0.00018369,2]
[388625558,1759270244459,-150.0,0.0001837,2]
[388625559,1759270244468,-3770.15250324,0.00018386,2]
[388625560,1759270244479,-500.0,0.00018389,2]
[388625561,1759270244489,-247.47281751,0.00018389,2]
[388625562,1759270244498,-211.7298228,0.00018389,2]
[388625563,1759270244507,-413.84624442,0.00018389,2]
[388625564,1759270244516,-733.86093401,0.000184,2]
[388625565,1759270244526,-389.82477443,0.000184,2]
[388625566,1759270244535,-1014.0,0.000184,2]
[388625567,1759270244545,-1000.0,0.000184,2]
[388625568,1759270244555,-168.0,0.0001842,2]
[388625569,1759270244566,-370.35923647,0.00018421,2]
[388625570,1759270244576,-150.0,0.00018427,2]
[388625571,1759270244586,-150.0,0.00018427,2]
[388625572,1759270244595,-150.0,0.00018427,2]
[388625573,1759270244607,-150.0,0.00018427,2]
[388625574,1759270244616,-150.0,0.00018484,2]
[388625575,1759270244626,-1000.0,0.000185,2]
[388625576,1759270244637,-1000.0,0.000185,2]
[388625577,1759270244647,-1000.0,0.000185,2]
[388625578,1759270244657,-1000.0,0.000185,2]
[388625579,1759270244667,-1000.0,0.000185,2]
[388625580,1759270244676,-1000.0,0.000185,2]
[388625581,1759270244686,-168.0,0.00018528,2]
[388625582,1759270244695,-168.0,0.0001853,2]
[388625583,1759270244704,-304.94,0.00018533,2]
[388625584,1759270244714,-299.99,0.00018533,4]
[388625585,1759270244723,-999.99,0.00018533,2]
[388625586,1759270244733,-5397.58,0.00018533,2]
[388625587,1759270244742,-150.99,0.00018533,2]
[388625588,1759270244751,-7842.33,0.00018533,2]
[388625589,1759270244760,-150.99,0.00018533,2]
[388625590,1759270244770,-1523.6,0.00018533,2]
[388625591,1759270244780,-150.0,0.00018535,2]
[388625592,1759270244789,-896.27,0.00018537,2]
[388625593,1759270244798,-150.0,0.00018549,2]
[388625594,1759270244809,-3770.15250324,0.00018557,2]
[388625595,1759270244818,-150.0,0.00018566,2]
[388625596,1759270244828,-150.0,0.00018566,2]
[388625597,1759270244837,-267.39769902,0.0001857,2]
[388625598,1759270244846,-181.74,0.00018571,2]
[388625599,1759270244857,-150.0,0.00018599,2]
[388625600,1759270244866,-733.86093401,0.000186,2]
[388625601,1759270244876,-389.82477443,0.000186,2]
[388625602,1759270244885,-150.0,0.00018621,2]
[388625603,1759270244895,-150.0,0.00018621,2]
[388625604,1759270244905,-150.0,0.00018621,2]
[388625605,1759270244915,-1000.0,0.0001863,2]
[388625606,1759270244926,-68971.00822156,0.0001865,2]
[388625607,1759270244935,-150.0,0.0001867,2]
[388625608,1759270244946,-150.0,0.0001867,2]
[388625609,1759270244959,-15296.37041961,0.00018711,2]
[388625610,1759270244970,-150.0,0.00018713,2]
[388625611,1759270244979,-3770.15250324,0.00018729,2]
[388625612,1759270244988,-150.0,0.00018751,2]
[388625613,1759270244998,-150.0,0.00018751,2]
[388625614,1759270245008,-150.0,0.00018751,2]
[388625615,1759270245018,-150.0,0.00018751,2]
[388625616,1759270245029,-5000.0,0.0001877,2]
[388625617,1759270245038,-698.56143848,0.0001878,2]
[388625618,1759270245047,-292.61636187,0.0001878,2]
[388625619,1759270245056,-470.7062724,0.0001878,2]
[388625620,1759270245066,-150.0,0.00018791,2]
[388625621,1759270245075,-9000.0,0.000188,2]
[388625622,1759270245084,-733.86093401,0.000188,2]
[388625623,1759270245093,-389.82477443,0.000188,2]
[388625624,1759270245104,-25000.00334806,0.000188,2]
[388625625,1759270245113,-896.27,0.00018811,2]
[388625626,1759270245122,-150.0,0.00018815,2]
[388625627,1759270245132,-1500.0,0.00018816,2]
[388625628,1759270245140,-150.0,0.00018827,2]
[388625629,1759270245150,-35534.78015273,0.0001884,2]
[388625630,1759270245159,-150.0,0.00018843,2]
[388625631,1759270245169,-150.0,0.00018843,2]
[388625632,1759270245180,-320.22267972,0.0001887,2]
[388625633,1759270245190,-320.22267972,0.0001887,2]
[388625634,1759270245203,-150.7,0.0001887,2]
[388625635,1759270245222,-150.7,0.0001887,2]
[388625636,1759270245234,-150.7,0.0001887,2]
[388625637,1759270245245,-150.7,0.0001887,2]
[388625638,1759270245255,-150.7,0.0001887,2]
[388625639,1759270245264,-150.7,0.0001887,2]
[388625640,1759270245273,-150.7,0.0001887,2]
[388625641,1759270245285,-150.7,0.0001887,2]
[388625642,1759270245295,-150.7,0.0001887,2]
[388625643,1759270245305,-150.7,0.0001887,2]
[388625644,1759270245315,-150.7,0.0001887,2]
[388625645,1759270245326,-150.7,0.0001887,2]
[388625646,1759270245336,-150.7,0.0001887,2]
[388625647,1759270245345,-150.7,0.0001887,2]
[388625648,1759270245357,-500.0,0.00018873,2]
[388625649,1759270245367,-500.0,0.00018873,2]
[388625650,1759270245377,-169.42436908,0.00018873,2]
[388625651,1759270245386,-721.54067204,0.00018879,5]
[388625652,1759270245396,-300.0,0.00018879,2]
[388625653,1759270245406,-500.0,0.00018879,2]
[388625654,1759270245416,-500.0,0.00018879,2]
[388625655,1759270245428,-500.0,0.00018879,2]
[388625656,1759270245439,-75097.20205234,0.0001888,2]
[388625664,1759270247558,-1000.0,0.00017072,2]
[388625665,1759270247567,-67.86847001,0.0001888,2]
[388625666,1759270247579,-1806.22920627,0.0001888,2]
[388625667,1759270247676,-3490708.91534979,0.0001888,2]
[388625669,1759270247686,-242.869992,0.0001888,2]
[388625671,1759270247695,-242.869992,0.0001888,2]
[388625672,1759270247704,-242.869992,0.0001888,2]
[388625673,1759270247714,-242.869992,0.0001888,2]
[388625674,1759270247723,-151.0,0.0001888,2]
[388625675,1759270247733,-151.0,0.0001888,2]
[388625676,1759270247742,-182.442519,0.0001888,2]
[388625677,1759270247751,-347.873594,0.0001888,2]
[388625678,1759270247760,-347.873594,0.0001888,2]
[388625679,1759270247770,-151.0,0.0001888,2]
[388625680,1759270247779,-347.873594,0.0001888,2]
[388625681,1759270247788,-151.0,0.0001888,2]
[388625682,1759270247798,-151.0,0.0001888,2]
[388625683,1759270247808,-347.873594,0.0001888,2]
[388625684,1759270247818,-151.0,0.0001888,2]
[388625685,1759270247827,-153.359571,0.0001888,2]
[388625686,1759270247837,-151.0,0.0001888,2]
[388625687,1759270247846,-151.0,0.0001888,2]
[388625688,1759270247855,-151.0,0.0001888,2]
[388625689,1759270247865,-282.431382,0.0001888,2]
[388625690,1759270247875,-151.0,0.0001888,2]
[388625691,1759270247886,-151.0,0.0001888,2]
[388625692,1759270247895,-151.0,0.0001888,2]
[388625693,1759270247904,-151.0,0.0001888,2]
[388625694,1759270247913,-151.0,0.0001888,2]
[388625695,1759270247924,-154.056326,0.0001888,2]
[388625696,1759270247933,-151.0,0.0001888,2]
[388625697,1759270247943,-151.0,0.0001888,2]
[388625698,1759270247953,-151.0,0.0001888,2]
[388625699,1759270247962,-167.572792,0.0001888,2]
[388625700,1759270247971,-151.0,0.0001888,2]
[388625701,1759270247980,-151.0,0.0001888,2]
[388625702,1759270247990,-151.0,0.0001888,2]
[388625703,1759270247999,-151.0,0.0001888,2]
[388625704,1759270248008,-151.0,0.0001888,2]
[388625705,1759270248017,-151.0,0.0001888,2]
[388625706,1759270248026,-151.0,0.0001888,2]
[388625707,1759270248035,-151.0,0.0001888,2]
[388625708,1759270248044,-151.0,0.0001888,2]
[388625709,1759270248054,-151.0,0.0001888,2]
[388625710,1759270248063,-151.0,0.0001888,2]
[388625711,1759270248072,-151.0,0.0001888,2]
[388625712,1759270248081,-151.0,0.0001888,2]
[388625713,1759270248090,-151.0,0.0001888,2]
[388625714,1759270248099,-151.0,0.0001888,2]
[388625715,1759270248109,-151.0,0.0001888,2]
[388625716,1759270248119,-151.0,0.0001888,2]
[388625717,1759270248128,-151.0,0.0001888,2]
[388625718,1759270248138,-151.0,0.0001888,2]
[388625719,1759270248147,-162.110232,0.0001888,2]
[388625720,1759270248156,-151.0,0.0001888,2]
[388625721,1759270248166,-151.0,0.0001888,2]
[388625722,1759270248175,-151.0,0.0001888,2]
[388625723,1759270248184,-151.0,0.0001888,2]
[388625724,1759270248193,-151.0,0.0001888,2]
[388625725,1759270248203,-151.0,0.0001888,2]
[388625726,1759270248215,-151.0,0.0001888,2]
[388625727,1759270248224,-151.0,0.0001888,2]
[388625728,1759270248234,-151.0,0.0001888,2]
[388625729,1759270248243,-151.0,0.0001888,2]
[388625730,1759270248252,-151.0,0.0001888,2]
[388625731,1759270248263,-151.0,0.0001888,2]
[388625732,1759270248272,-151.0,0.0001888,2]
[388625733,1759270248283,-158.657039,0.0001888,2]
[388625734,1759270248293,-151.0,0.0001888,2]
[388625735,1759270248302,-151.0,0.0001888,2]
[388625736,1759270248311,-184.141671,0.0001888,2]
[388625737,1759270248320,-151.0,0.0001888,2]
[388625738,1759270248330,-184.141671,0.0001888,2]
[388625739,1759270248339,-151.0,0.0001888,2]
[388625740,1759270248349,-184.141671,0.0001888,2]
[388625741,1759270248358,-151.0,0.0001888,2]
[388625742,1759270248367,-151.0,0.0001888,2]
[388625743,1759270248376,-184.141671,0.0001888,2]
[388625744,1759270248385,-151.0,0.0001888,2]
[388625745,1759270248394,-358.515993,0.0001888,2]
[388625746,1759270248403,-151.0,0.0001888,2]
[388625747,1759270248412,-151.0,0.0001888,2]
[388625748,1759270248422,-841.344437,0.0001888,2]
[388625749,1759270248431,-358.515993,0.0001888,2]
[388625750,1759270248440,-151.0,0.0001888,2]
[388625751,1759270248450,-151.0,0.0001888,2]
[388625752,1759270248460,-151.0,0.0001888,2]
[388625753,1759270248470,-358.515993,0.0001888,2]
[388625754,1759270248480,-841.344437,0.0001888,2]
[388625755,1759270248490,-151.0,0.0001888,2]
[388625756,1759270248499,-151.0,0.0001888,2]
[388625757,1759270248511,-358.515993,0.0001888,2]
[388625758,1759270248521,-841.344437,0.0001888,2]
[388625759,1759270248531,-151.0,0.0001888,2]
[388625760,1759270248542,-151.0,0.0001888,2]
[388625761,1759270248552,-151.0,0.0001888,2]
[388625762,1759270248562,-841.344437,0.0001888,2]
[388625763,1759270248571,-151.0,0.0001888,2]
[388625764,1759270248581,-181.805125,0.0001888,2]
[388625765,1759270248591,-151.0,0.0001888,2]
[388625766,1759270248601,-151.0,0.0001888,2]
[388625767,1759270248612,-151.0,0.0001888,2]
[388625768,1759270248621,-199.196776,0.0001888,2]
[388625769,1759270248631,-199.196776,0.0001888,2]
[388625770,1759270248641,-199.196776,0.0001888,2]
[388625771,1759270248651,-199.196776,0.0001888,2]
[388625772,1759270248661,-151.0,0.0001888,2]
[388625773,1759270248670,-151.186032,0.0001888,2]
[388625774,1759270248680,-151.0,0.0001888,2]
[388625775,1759270248689,-151.0,0.0001888,2]
[388625776,1759270248699,-151.0,0.0001888,2]
[388625777,1759270248708,-151.0,0.0001888,2]
[388625778,1759270248718,-151.0,0.0001888,2]
[388625779,1759270248727,-151.0,0.0001888,2]
[388625780,1759270248737,-151.0,0.0001888,2]
[388625781,1759270248746,-151.0,0.0001888,2]
[388625782,1759270248755,-151.0,0.0001888,2]
[388625783,1759270248764,-151.0,0.0001888,2]
[388625784,1759270248774,-166.929487,0.0001888,2]
[388625785,1759270248783,-151.0,0.0001888,2]
[388625786,1759270248794,-236.666896,0.0001888,2]
[388625787,1759270248804,-236.666896,0.0001888,2]
[388625788,1759270248814,-236.666896,0.0001888,2]
[388625789,1759270248824,-236.666896,0.0001888,2]
[388625790,1759270248835,-429.433978,0.0001888,2]
[388625791,1759270248845,-917.461987,0.0001888,2]
[388625792,1759270248855,-429.433978,0.0001888,2]
[388625793,1759270248864,-917.461987,0.0001888,2]
[388625794,1759270248875,-429.433978,0.0001888,2]
[388625795,1759270248884,-917.461987,0.0001888,2]
[388625796,1759270248895,-218.855512,0.0001888,2]
[388625797,1759270248904,-429.433978,0.0001888,2]
[388625798,1759270248914,-917.461987,0.0001888,2]
[388625799,1759270248924,-218.855512,0.0001888,2]
[388625800,1759270248935,-218.855512,0.0001888,2]
[388625801,1759270248944,-218.855512,0.0001888,2]
[388625802,1759270248955,-180.074422,0.0001888,2]
[388625803,1759270248964,-180.074422,0.0001888,2]
[388625804,1759270248974,-151.0,0.0001888,2]
[388625805,1759270248985,-180.074422,0.0001888,2]
[388625806,1759270248997,-180.074422,0.0001888,2]
[388625807,1759270249006,-151.0,0.0001888,2]
[388625808,1759270249015,-151.0,0.0001888,2]
[388625809,1759270249027,-151.0,0.0001888,2]
[388625810,1759270249038,-151.0,0.0001888,2]
[388625811,1759270249050,-839.433407,0.0001888,2]
[388625812,1759270249059,-839.433407,0.0001888,2]
[388625813,1759270249069,-839.433407,0.0001888,2]
[388625814,1759270249078,-839.433407,0.0001888,2]
[388625815,1759270249090,-366.047005,0.0001888,2]
[388625816,1759270249100,-366.047005,0.0001888,2]
[388625817,1759270249109,-366.047005,0.0001888,2]
[388625818,1759270249119,-366.047005,0.0001888,2]
[388625819,1759270249129,-151.0,0.0001888,2]
[388625820,1759270249140,-231.906275,0.0001888,2]
[388625821,1759270249150,-151.0,0.0001888,2]
[388625822,1759270249160,-151.0,0.0001888,2]
[388625823,1759270249169,-231.906275,0.0001888,2]
[388625824,1759270249178,-151.0,0.0001888,2]
[388625825,1759270249187,-151.0,0.0001888,2]
[388625826,1759270249198,-151.0,0.0001888,2]
[388625827,1759270249209,-231.906275,0.0001888,2]
[388625828,1759270249220,-151.0,0.0001888,2]
[388625829,1759270249229,-231.906275,0.0001888,2]
[388625830,1759270249238,-1252.438114,0.0001888,2]
[388625831,1759270249247,-1252.438114,0.0001888,2]
[388625832,1759270249258,-1252.438114,0.0001888,2]
[388625833,1759270249267,-1252.438114,0.0001888,2]
[388625834,1759270249277,-154.6328,0.0001888,2]
[388625835,1759270249287,-154.6328,0.0001888,2]
[388625836,1759270249297,-154.6328,0.0001888,2]
[388625837,1759270249306,-151.0,0.0001888,2]
[388625838,1759270249316,-154.6328,0.0001888,2]
[388625839,1759270249325,-151.0,0.0001888,2]
[388625840,1759270249335,-151.0,0.0001888,2]
[388625841,1759270249344,-151.0,0.0001888,2]
[388625842,1759270249354,-151.0,0.0001888,2]
[388625843,1759270249363,-151.0,0.0001888,2]
[388625844,1759270249372,-151.0,0.0001888,2]
[388625845,1759270249381,-243.20462,0.0001888,2]
[388625846,1759270249390,-151.0,0.0001888,2]
[388625847,1759270249399,-243.20462,0.0001888,2]
[388625848,1759270249408,-151.0,0.0001888,2]
[388625849,1759270249418,-243.20462,0.0001888,2]
[388625850,1759270249427,-151.0,0.0001888,2]
[388625851,1759270249436,-151.0,0.0001888,2]
[388625852,1759270249446,-151.0,0.0001888,2]
[388625853,1759270249455,-243.20462,0.0001888,2]
[388625854,1759270249464,-151.0,0.0001888,2]
[388625855,1759270249474,-151.0,0.0001888,2]
[388625856,1759270249483,-152.194592,0.0001888,2]
[388625857,1759270249492,-1379.869944,0.0001888,2]
[388625858,1759270249502,-1379.869944,0.0001888,2]
[388625859,1759270249512,-151.0,0.0001888,2]
[388625860,1759270249521,-1379.869944,0.0001888,2]
[388625861,1759270249531,-1379.869944,0.0001888,2]
[388625862,1759270249540,-1912.707684,0.0001888,2]
[388625863,1759270249549,-1912.707684,0.0001888,2]
[388625864,1759270249558,-306.813386,0.0001888,2]
[388625865,1759270249568,-1912.707684,0.0001888,2]
[388625866,1759270249577,-306.813386,0.0001888,2]
[388625867,1759270249587,-1912.707684,0.0001888,2]
[388625868,1759270249597,-306.813386,0.0001888,2]
[388625869,1759270249606,-306.813386,0.0001888,2]
[388625870,1759270249615,-151.0,0.0001888,2]
[388625871,1759270249624,-474.496397,0.0001888,2]
[388625872,1759270249635,-151.0,0.0001888,2]
[388625873,1759270249645,-474.496397,0.0001888,2]
[388625874,1759270249655,-151.0,0.0001888,2]
[388625875,1759270249666,-368.459705,0.0001888,2]
[388625876,1759270249675,-474.496397,0.0001888,2]
[388625877,1759270249684,-368.459705,0.0001888,2]
[388625878,1759270249693,-151.0,0.0001888,2]
[388625879,1759270249702,-474.496397,0.0001888,2]
[388625880,1759270249712,-180.919052,0.0001888,2]
[388625881,1759270249721,-368.459705,0.0001888,2]
[388625882,1759270249731,-151.0,0.0001888,2]
[388625883,1759270249739,-180.919052,0.0001888,2]
[388625884,1759270249749,-368.459705,0.0001888,2]
[388625885,1759270249760,-180.919052,0.0001888,2]
[388625886,1759270249770,-151.0,0.0001888,2]
[388625887,1759270249779,-151.0,0.0001888,2]
[388625888,1759270249789,-182.119642,0.0001888,2]
[388625889,1759270249798,-180.919052,0.0001888,2]
[388625890,1759270249808,-151.0,0.0001888,2]
[388625891,1759270249817,-182.119642,0.0001888,2]
[388625892,1759270249828,-269.585991,0.0001888,2]
[388625893,1759270249837,-323.014442,0.0001888,2]
[388625894,1759270249846,-151.0,0.0001888,2]
[388625895,1759270249856,-182.119642,0.0001888,2]
[388625896,1759270249865,-363.170491,0.0001888,2]
[388625897,1759270249875,-269.585991,0.0001888,2]
[388625898,1759270249885,-182.119642,0.0001888,2]
[388625899,1759270249894,-363.170491,0.0001888,2]
[388625900,1759270249905,-269.585991,0.0001888,2]
[388625901,1759270249918,-323.014442,0.0001888,2]
[388625902,1759270249929,-151.0,0.0001888,2]
[388625903,1759270249938,-363.170491,0.0001888,2]
[388625904,1759270249947,-269.585991,0.0001888,2]
[388625905,1759270249957,-323.014442,0.0001888,2]
[388625906,1759270249967,-363.170491,0.0001888,2]
[388625907,1759270249979,-323.014442,0.0001888,2]
[388625908,1759270249988,-151.0,0.0001888,2]
[388625909,1759270249998,-151.0,0.0001888,2]
[388625910,1759270250009,-1671.966845,0.0001888,2]
[388625911,1759270250018,-151.0,0.0001888,2]
[388625912,1759270250028,-1671.966845,0.0001888,2]
[388625913,1759270250037,-324.806803,0.0001888,2]
[388625914,1759270250047,-1671.966845,0.0001888,2]
[388625915,1759270250057,-324.806803,0.0001888,2]
[388625916,1759270250066,-1671.966845,0.0001888,2]
[388625917,1759270250075,-324.806803,0.0001888,2]
[388625918,1759270250084,-324.806803,0.0001888,2]
[388625919,1759270250094,-748.085847,0.0001888,2]
[388625920,1759270250103,-213.813092,0.0001888,2]
[388625921,1759270250112,-748.085847,0.0001888,2]
[388625922,1759270250122,-213.813092,0.0001888,2]
[388625923,1759270250132,-748.085847,0.0001888,2]
[388625924,1759270250141,-213.813092,0.0001888,2]
[388625925,1759270250151,-748.085847,0.0001888,2]
[388625926,1759270250160,-213.813092,0.0001888,2]
[388625927,1759270250170,-151.0,0.0001888,2]
[388625928,1759270250179,-151.0,0.0001888,2]
[388625929,1759270250188,-151.0,0.0001888,2]
[388625930,1759270250198,-151.0,0.0001888,2]
[388625931,1759270250209,-334.229718,0.0001888,2]
[388625932,1759270250220,-151.0,0.0001888,2]
[388625933,1759270250230,-151.0,0.0001888,2]
[388625934,1759270250240,-334.229718,0.0001888,2]
[388625935,1759270250251,-151.0,0.0001888,2]
[388625936,1759270250260,-334.229718,0.0001888,2]
[388625937,1759270250270,-334.229718,0.0001888,2]
[388625938,1759270250279,-198.490739,0.0001888,2]
[388625939,1759270250290,-198.490739,0.0001888,2]
[388625940,1759270250300,-182.508038,0.0001888,2]
[388625941,1759270250309,-180.995053,0.0001888,2]
[388625942,1759270250319,-198.490739,0.0001888,2]
[388625943,1759270250328,-182.508038,0.0001888,2]
[388625944,1759270250338,-180.995053,0.0001888,2]
[388625945,1759270250347,-198.490739,0.0001888,2]
[388625946,1759270250357,-182.508038,0.0001888,2]
[388625947,1759270250366,-180.995053,0.0001888,2]
[388625948,1759270250375,-182.508038,0.0001888,2]
[388625949,1759270250384,-151.0,0.0001888,2]
[388625950,1759270250394,-180.995053,0.0001888,2]
[388625951,1759270250403,-151.0,0.0001888,2]
[388625952,1759270250413,-151.0,0.0001888,2]
[388625953,1759270250423,-6760.265668,0.0001888,2]
[388625954,1759270250432,-393.922872,0.0001888,2]
[388625955,1759270250443,-393.922872,0.0001888,2]
[388625956,1759270250453,-393.922872,0.0001888,2]
[388625957,1759270250463,-393.922872,0.0001888,2]
[388625958,1759270250472,-151.0,0.0001888,2]
[388625959,1759270250482,-390.600347,0.0001888,2]
[388625960,1759270250492,-151.0,0.0001888,2]
[388625961,1759270250502,-390.600347,0.0001888,2]
[388625962,1759270250513,-390.600347,0.0001888,2]
[388625963,1759270250522,-390.600347,0.0001888,2]
[388625964,1759270250533,-151.0,0.0001888,2]
[388625965,1759270250543,-151.0,0.0001888,2]
[388625966,1759270250822,-151.0,0.0001888,2]
[388625967,1759270250832,-151.0,0.0001888,2]
[388625968,1759270250842,-155.710953,0.0001888,2]
[388625969,1759270250851,-151.0,0.0001888,2]
[388625970,1759270250861,-151.0,0.0001888,2]
[388625971,1759270250870,-1243.77777,0.0001888,2]
[388625972,1759270250879,-155.710953,0.0001888,2]
[388625973,1759270250889,-151.0,0.0001888,2]
[388625974,1759270250898,-1243.77777,0.0001888,2]
[388625975,1759270250907,-492.626114,0.0001888,2]
[388625976,1759270250916,-155.710953,0.0001888,2]
[388625977,1759270250925,-1243.77777,0.0001888,2]
[388625978,1759270250934,-492.626114,0.0001888,2]
[388625979,1759270250945,-155.710953,0.0001888,2]
[388625980,1759270250954,-1243.77777,0.0001888,2]
[388625981,1759270250963,-492.626114,0.0001888,2]
[388625982,1759270250972,-492.626114,0.0001888,2]
[388625983,1759270250981,-151.0,0.0001888,2]
[388625984,1759270250991,-151.0,0.0001888,2]
[388625985,1759270251000,-151.0,0.0001888,2]
[388625986,1759270251009,-151.0,0.0001888,2]
[388625987,1759270251017,-213.799025,0.0001888,2]
[388625988,1759270251027,-151.0,0.0001888,2]
[388625989,1759270251035,-213.799025,0.0001888,2]
[388625990,1759270251045,-151.0,0.0001888,2]
[388625991,1759270251054,-207.549927,0.0001888,2]
[388625992,1759270251064,-151.0,0.0001888,2]
[388625993,1759270251075,-151.0,0.0001888,2]
[388625994,1759270251084,-207.549927,0.0001888,2]
[388625995,1759270251096,-833.554524,0.0001888,2]
[388625996,1759270251107,-151.0,0.0001888,2]
[388625997,1759270251119,-213.799025,0.0001888,2]
[388625998,1759270251128,-502.386737,0.0001888,2]
[388625999,1759270251138,-151.0,0.0001888,2]
[388626000,1759270251148,-207.549927,0.0001888,2]
[388626001,1759270251157,-833.554524,0.0001888,2]
[388626002,1759270251167,-213.799025,0.0001888,2]
[388626003,1759270251176,-502.386737,0.0001888,2]
[388626004,1759270251186,-207.549927,0.0001888,2]
[388626005,1759270251195,-151.409944,0.0001888,2]
[388626006,1759270251205,-833.554524,0.0001888,2]
[388626007,1759270251220,-502.386737,0.0001888,2]
[388626008,1759270251229,-833.554524,0.0001888,2]
[388626009,1759270251239,-502.386737,0.0001888,2]
[388626010,1759270251248,-151.0,0.0001888,2]
[388626011,1759270251259,-381.07159,0.0001888,2]
[388626012,1759270251268,-381.07159,0.0001888,2]
[388626013,1759270251278,-151.0,0.0001888,2]
[388626014,1759270251289,-173.201029,0.0001888,2]
[388626015,1759270251298,-381.07159,0.0001888,2]
[388626016,1759270251308,-151.0,0.0001888,2]
[388626017,1759270251318,-173.201029,0.0001888,2]
[388626018,1759270251328,-381.07159,0.0001888,2]
[388626019,1759270251339,-173.201029,0.0001888,2]
[388626020,1759270251348,-173.201029,0.0001888,2]
[388626021,1759270251358,-151.0,0.0001888,2]
[388626022,1759270251367,-151.0,0.0001888,2]
[388626023,1759270251377,-151.0,0.0001888,2]
[388626024,1759270251386,-151.0,0.0001888,2]
[388626025,1759270251396,-151.0,0.0001888,2]
[388626026,1759270251406,-910.8595,0.0001888,2]
[388626027,1759270251415,-151.0,0.0001888,2]
[388626028,1759270251424,-910.8595,0.0001888,2]